Cogmind - Beta 9.3 @@@ ROGUE MODE // 2019.12.23 @ 18:54:31 Player: Demise Result: Destroyed by S-10 Pest with Light Assault Rifle Performance ------------- Evolutions (0) 0 Regions Visited (2) 400 Robots Destroyed (23) 115 Value Destroyed (438) 438 Prototype IDs (0) 0 Alien Tech Used (0) 0 Bonus (0) 0 TOTAL SCORE: 953 Bonus ------- None Cogmind --------- Core Integrity 0/250 Matter 292/350 Energy 160/160 System Corruption 0% Temperature Cool (4) Movement Core (200) Ox3 Location -10/Mines Parts ------- > --- POWER (1) -------- Light Nuclear Core > --- PROPULSION (2) --- (None) > --- UTILITY (2) ------ Small Storage Unit Small Matter Pod > --- WEAPON (2) ------- Light Assault Rifle > --- INVENTORY (6) ---- Ion Engine Signal Interpreter Improved Terrain Scanner Seismic Analyzer Light Assault Rifle Mining Laser Peak State ------------ > --- POWER ------------ Light Nuclear Core > --- PROPULSION ------- Wheel Compact Wheel > --- UTILITY ---------- Small Storage Unit Power Shielding > --- WEAPON ----------- Light Assault Rifle Light Cannon > --- INVENTORY -------- Ion Engine Improved Terrain Scanner Seismic Analyzer Light Assault Rifle Mining Laser [Rating: 9] Favorites ----------- Power Light Ion Engine Engine Light Ion Engine Power Core Light Nuclear Core Propulsion Wheel Wheel Wheel Utility Small Storage Unit Device Improved Terrain Scanner Storage Small Storage Unit Protection Power Shielding Weapon Light Assault Rifle Energy Gun Medium Laser Ballistic Gun Light Assault Rifle Ballistic Cannon Light Cannon Special Weapon Mining Laser Build | -11 -10 -10 ------- Run | Scr Mat Min Slots Evolved . | . . . Power . | . . . Propulsion . | . . . Utility . | . . . Weapon . | . . . Parts Attached 18 | 6 7 5 Power 2 | 1 1 . Engine 1 | 1 . . Core 1 | . 1 . Reactor . | . . . Propulsion 2 | 2 . . Treads . | . . . Leg . | . . . Wheel 2 | 2 . . Hover . | . . . Flight . | . . . Utility 5 | 1 3 1 Device 1 | . 1 . Storage 2 | 1 . 1 Processor . | . . . Hackware . | . . . Protection 2 | . 2 . Artifact . | . . . Weapon 9 | 2 3 4 Energy Gun 2 | 2 . . Energy Cannon . | . . . Ballistic Gun 4 | . 1 3 Ballistic Cannon 1 | . 1 . Launcher . | . . . Special Weapon 2 | . 1 1 Impact Weapon . | . . . Slashing Weapon . | . . . Piercing Weapon . | . . . Special Melee Weapon . | . . . Unidentified Prototypes . | . . . Parts Lost 7 | . 2 5 Power 1 | . 1 . Propulsion 2 | . . 2 Utility 1 | . . 1 Weapon 3 | . 1 2 Highest Loss Streak 3 | . 1 3 Average Slot Usage (%) 94 | . 94 95 Engine 6 | . 10 . Core 7 | . 3 14 Wheel 26 | . 28 25 Device 1 | . 1 . Storage 17 | . 14 24 Protection 5 | . 7 2 Energy Gun 6 | . 10 . Ballistic Gun 10 | . 5 19 Ballistic Cannon 5 | . 7 1 Special Weapon 5 | . 5 5 Naked Turns . | . . . Heaviest Build 16 | 10 16 16 Greatest Support 26 | 26 26 26 Greatest Overweight (x) 3 | . . 3 Average Overweight (x) . | . . . Largest Inventory Capacity 6 | 6 6 6 Average Capacity 5 | 5 6 6 Most Carried 6 | 6 6 6 Average Carried 5 | 3 5 5 Final Capacity 6 | 6 6 6 Final Carried 6 | 5 6 6 Class Distribution -------------------- 100% | Mutant Dominant Class ---------------- Mutant | -10/Materials Mutant | -10/Mines Resources | -11 -10 -10 ----------- Run | Scr Mat Min Matter Collected 560 | 260 99 201 Remotely . | . . . Salvage Created 582 | 229 99 254 Parts 39 | 15 6 18 Haulers Intercepted . | . . . Recyclers Shooed . | . . . Parts Field Recycled . | . . . Retrieved Matter . | . . . Parts Self-Destructed . | . . . Prevented . | . . . Kills | -11 -10 -10 ------- Run | Scr Mat Min Combat Hostiles Destroyed 14 | . 4 10 Guns 10 | . 1 9 Cannons 4 | . 3 1 Classes Destroyed 5 | 3 1 1 Worker 3 | 2 . 1 Tunneler 5 | 5 . . Recycler 1 | 1 . . Swarmer 6 | . . 6 Grunt 8 | . 4 4 Best Kill Streak 6 | 5 2 6 Combat Bots Only 3 | . 2 3 Max Kills in Single Turn 1 | 1 1 1 Gunslinging . | . . . Exploded . | . . . Melee . | . . . Uniques/NPCs Destroyed . | . . . Combat | -11 -10 -10 -------- Run | Scr Mat Min Damage Taken 929 | . 358 571 Core 254 | . 68 186 Absorbed by Shields . | . . . Core Remaining (%) 100 | 100 . . Volleys Fired 99 | 19 37 43 Largest 2 | 2 2 2 Hottest 100 | 90 100 100 Shots Fired 160 | 38 51 71 Gun 109 | 38 14 57 Cannon 38 | . 31 7 Launcher . | . . . Special 13 | . 6 7 Kinetic 109 | . 45 64 Thermal 51 | 38 6 7 Explosive . | . . . Electromagnetic . | . . . Robot Hit Streak 10 | 8 8 10 Robot Miss Streak 3 | 3 3 2 Penetration Max . | . . . Secondary Targets . | . . . Shots Hit Robots 101 | 23 32 46 Core Hits 40 | 9 9 22 Critical Hits 2 | . 2 . Critical Kills 1 | . 1 . Critical Parts Destroyed 1 | . 1 . Melee Attacks . | . . . Impact . | . . . Slashing . | . . . Piercing . | . . . Sneak Attacks . | . . . Combat Hostiles . | . . . Follow-up Attacks . | . . . Damage Inflicted 1148 | 308 419 421 Guns 709 | 308 87 314 Cannons 439 | . 332 107 Explosions . | . . . Melee . | . . . Ramming . | . . . Kinetic 840 | . 419 421 Thermal 308 | 308 . . Explosive . | . . . Electromagnetic . | . . . Impact . | . . . Slashing . | . . . Piercing . | . . . Highest Corruption . | . . . Average Corruption . | . . . Corruption Purged . | . . . Overload Shots . | . . . Overflow Damage 6 | . 6 . Projectiles 6 | . 6 . Explosions . | . . . Melee . | . . . Knockbacks 14 | . 11 3 Impact . | . . . Kinetic 12 | . 10 2 Secondary 2 | . 1 1 Self-Inflicted Damage . | . . . Shots . | . . . Rammed . | . . . Targets Rammed . | . . . Kicked . | . . . Crushed . | . . . Highest Temperature 210 | 210 60 161 Average Temperature 42 | 73 18 41 Received Heat Transfer 390 | . 231 159 Siege Activations . | . . . Robots Corrupted . | . . . Combat Hostiles . | . . . Parts Fried . | . . . Impact Corruptions . | . . . Robots Melted . | . . . Combat Hostiles . | . . . Parts Melted 1 | 1 . . Heat Transferred 830 | 830 . . Parts Sabotaged . | . . . Parts Stolen . | . . . Parts Stripped . | . . . Power Chain Reactions . | . . . Missiles Intercepted . | . . . Alert | -11 -10 -10 ------- Run | Scr Mat Min Peak Influence 228 | 40 109 228 Average Influence 77 | 18 59 137 Maximum Alert Level 1 | . . 1 Low Security (%) 97 | 100 100 91 Level 1 2 | . . 8 Level 2 . | . . . Level 3 . | . . . Level 4 . | . . . Level 5 . | . . . High Security . | . . . Max Security . | . . . Squads Dispatched 2 | . 2 . Investigation 1 | . 1 . Extermination . | . . . Reinforcement 1 | . 1 . Assault . | . . . Garrison . | . . . Intercept . | . . . Construction Impeded . | . . . Haulers Reinforced . | . . . Stealth | -11 -10 -10 --------- Run | Scr Mat Min Distress Signals 1 | . 1 . Communications Jammed . | . . . Distress Signals . | . . . Times Spotted 26 | . 12 14 Peak Tracking Total 3 | . 3 3 Tactical Retreats 2 | . 1 1 Traps | -11 -10 -10 ------- Run | Scr Mat Min Traps Triggered . | . . . Indirectly . | . . . Trap Hack Attempts . | . . . Triggered . | . . . Disarmed . | . . . Reprogrammed . | . . . Reused . | . . . Traps Extracted . | . . . Installed . | . . . Triggered . | . . . Machines | -11 -10 -10 ---------- Run | Scr Mat Min Machines Disabled 1 | . 1 . Max in Single Turn 1 | . 1 . Machines Sabotaged . | . . . Garrisons Compromised . | . . . Overloaded Fab Kills . | . . . Fab Network Shutdowns . | . . . Hacking | -11 -10 -10 --------- Run | Scr Mat Min Machines Accessed 5 | . 5 . Terminals 4 | . 4 . Fabricators . | . . . Repair Stations 1 | . 1 . Recycling Units . | . . . Scanalyzers . | . . . Garrison Access . | . . . Total Hacks 14 | . 14 . Successful 7 | . 7 . Failed 7 | . 7 . Catastrophic . | . . . Database Lockouts . | . . . Manual 7 | . 7 . Terminals 12 | . 12 . Fabricators . | . . . Repair Stations 2 | . 2 . Recycling Units . | . . . Scanalyzers . | . . . Garrison Access . | . . . Terminal Hacks 2 | . 2 . Branch Access Points 1 | . 1 . Hauler Manifests 1 | . 1 . Fabricator Hacks . | . . . Repair Station Hacks 2 | . 2 . Scan Component 1 | . 1 . Repair 1 | . 1 . Recycling Unit Hacks . | . . . Scanalyzer . | . . . Garrison Access Hacks . | . . . Unauthorized Hacks 10 | . 10 . Terminals 3 | . 3 . Botnet 3 | . 3 . Fabricators . | . . . Repair Stations . | . . . Recycling Units . | . . . Scanalyzers . | . . . Garrison Access . | . . . Data Cores Recovered . | . . . Used . | . . . Hacking Detections 4 | . 4 . Full Trace Events 2 | . 2 . Feedback Events . | . . . Feedback Blocked . | . . . Robot Schematics Acquired . | . . . Robots Built . | . . . Matter . | . . . Time . | . . . Total Robot Build Rating . | . . . Part Schematics Acquired . | . . . Parts Built . | . . . Matter . | . . . Time . | . . . Total Part Build Rating . | . . . Parts Repaired 1 | . 1 . Time 32 | . 32 . Parts Recycled . | . . . Recycled Matter . | . . . Retrieved Matter . | . . . Retrieved Components . | . . . Parts Scanalyzed . | . . . Part Schematics Acquired . | . . . Parts Damaged . | . . . Bothacking | -11 -10 -10 ------------ Run | Scr Mat Min Used RIF Installer . | . . . Robots Hacked . | . . . Non-combat . | . . . Combat . | . . . Robot Hacks Applied . | . . . Relay Couplers Released . | . . . Robots Rewired . | . . . Allies Hacked . | . . . Hacks Repelled . | . . . Allies | -11 -10 -10 -------- Run | Scr Mat Min Total Allies . | . . . Largest Group . | . . . Highest-Rated Group . | . . . Highest-Rated Ally . | . . . Total Orders . | . . . Ally Attacks . | . . . Total Damage . | . . . Kills . | . . . Allies Corrupted . | . . . Allies Melted . | . . . Intel | -11 -10 -10 ------- Run | Scr Mat Min Robot Analysis Total . | . . . Derelict Logs Recovered . | . . . Drone Launches . | . . . Drone Recoveries . | . . . Exploration | -11 -10 -10 ------------- Run | Scr Mat Min Turns Passed 1070 | 153 593 324 Spaces Moved 736 | 91 437 208 Core 8 | 3 . 5 Treads . | . . . Legs . | . . . Wheels 728 | 88 437 203 Hover . | . . . Flight . | . . . Fastest Speed 50 | 50 90 90 Average Speed 90 | 88 90 92 Slowest Speed 200 | 90 90 200 Overloaded Moves . | . . . Propulsion Burnouts . | . . . Robots Hopped . | . . . Cave-ins Triggered . | . . . Exploration Rate (%) 46 | 5 63 70 Regions Visited 2 Branch Regions 1 Pre-discovered Areas . | . . . Known Exits Taken 1 | . 1 . Unknown Exits Taken 1 | 1 . . Scrap Searched 1 | . . 1 Spaces Dug 12 | . 5 7 Terrain Destroyed 12 | . 5 7 Melee . | . . . Projectile 12 | . 5 7 AOE . | . . . Actions | -11 -10 -10 --------- Run | Scr Mat Min Total 962 | 123 574 265 Wait 94 | . 87 7 Move 734 | 90 436 208 Hop . | . . . Pick Up 12 | 7 4 1 Fast Attach 10 | 5 3 2 Attach 3 | 1 1 1 Detach 1 | . 1 . Swap 5 | . 3 2 Drop 4 | 1 2 1 Fire 99 | 19 37 43 Melee . | . . . Ram . | . . . Kick . | . . . Crush . | . . . Escape Stasis . | . . . Rewire . | . . . Trap . | . . . Miscellaneous . | . . . Route ------- -11/Scrapyard -10/Materials (discovered 2 exits: [*Mat] / *Min) -10/Mines (discovered 2 exits: [*Mat x2]) History --------- Turn | Location | Event 9 | -11/Scrapyard | Discovered new exit (range 16) 154 | -11/Scrapyard | Entered Materials 308 | -10/Materials | Build established: Mutant 342 | -10/Materials | Repaired Imp. Terrain Scanner 347 | -10/Materials | Discovered new exit (range 5) 656 | -10/Materials | Identified exit to Mines 747 | -10/Materials | Entered Mines 812 | -10/Mines | Core integrity fell below 50% 941 | -10/Mines | Discovered new exit (range 9) 1042 | -10/Mines | Core integrity fell below 20% 1063 | -10/Mines | Discovered new exit (range 10) 1071 | -10/Mines | Destroyed by S-10 Pest with Light Assault Rifle Last Messages --------------- 00845_ Acquired Lgt. Assault Rifle. 00873_ The unstable cave ceiling collapses. 00882_ T-07 Excavator is excavating. 00927_ Searching scrap... 00927_ Found 22 Matter. 00927_ Found Ion Engine. 00927_ Found Tractor Beam. 00927_ Found Hover Unit. 00928_ Acquired 22 matter. 00941_ EXIT=FOUND 00992_ G-47 Trooper destroyed. 01003_ G-34 Mercenary destroyed. 01005_ Acquired 54 matter. 01037_ S-10 Pest destroyed. 01039_ Wheel destroyed. 01045_ Com. Wheel destroyed. 01050_ Lgt. Assault Rifle destroyed. 01053_ S-10 Pest destroyed. 01061_ Acquired 12 matter. 01063_ EXIT=FOUND Map ----- +----------------------------------------------------+ | ??????????????????????????## #????????????? | | ???????????????????????###### #????????????? | | ??????????????????????## #### #????????????? | | ?????????????????????## %!### #????????????? | | ????????????????????## ! #????????????? | | ????????????????????# #### #????????????? | | ????????????????????# ##??# #### #?????? | | ????????????????????## #????# #?????? | | ?????????????????????###?????# ##### #?????? | | ?????????????????????????????# #???????#?????? | | ?????????????????????????????# #?????????????? | | ??????????????????????????#### #?????????????? | | ???????????????????????#### ##????????????? | | ??????????????????????## ##???????????? | | ??????????????????????# #???????????? | | ?????????????????????## ## #???????????? | | ?????????????????????# ### #??????????? | | ?????????????????????# ##?? ?????????? | | ?????????????????????# ##??# #???????? | | ????????????????????## #??? #??????? | | ?????????????????#### #??? #?????? | | ?????????????????# *%[ #??? #????? | | ?????????????????# ##s% ##??? #????? | | ?????????????????# ?#= ##???? ##????? | | ?????????????????#??# ## ####?????? | | ????????# ### ##@= ###????????? | | ????????# < $s* #???????????? | | ????????# ####### ######???????????? | | ?????????????????????## ####????????????????? | | ??????????????????????####???????????????????? | | ?????????????????????????????????????????????? | | ?????????????????????????????????????????????? | | ?????????????????????????????????????????????? | | ?????????????????????????????????????????????? | | | | | | | | | | | | | | | | | | | | | | | | | | | | | | | | | +----------------------------------------------------+ Best States ------------- Heat Dissipation 25 Energy Generation 14 Energy Capacity 160 Matter Stores 300 Matter Capacity 350 Sight Range 16 Terrain Scan Range 16 Terrain Scan Density 10 Armor Coverage 150 Power Shielding 33 Evasion (%) 42 Item Schematics ----------------- None Robot Schematics ------------------ None Fabricated ------------ Nothing Alien Tech Used ----------------- None Achievements -------------- None Challenges ------------ None Game ------ Seed PoweredAbsorptionBarrier Manual? 0 Play Time 00:11:17 Cumulative 150.8 hours Start 2019.12.23 @ 18:45:36 End 2019.12.23 @ 18:54:31 Sessions 1 Manual Loads 0 Difficulty Rogue Special Mode None Game No. 202 Rogue 191 Adventurer 11 Explorer 0 Win Type - Total 0 Types 0/0/0/0/0/0/0 Lore% 47 Gallery% 59 Achievement% 42 Wizard Run 0 Options --------- ASCII 0 Keyboard 1 Movement Numpad Keybinds 0 Fullscreen 1 Font 12/Terminus Map View 83x54 Tactical HUD 1 Map Filters NONE Filters NONE Steam X RUN: 95de6fcc-e47d-4588-b699-2dd01cc88465